[Event "*** SCC Grand Prix: Titled Tuesday Blitz"]
[Site "Chess.com"]
[Date "2020.10.13"]
[Round "5"]
[White "Mikedannnn"]
[Black "A-S-00"]
[Result "1-0"]
[WhiteElo "2503"]
[BlackElo "2270"]
[TimeControl "180+1"]
[EndTime "10:56:45 PDT"]
[Termination "Mikedannnn won by resignation"]

1. e4 {[%clk 0:03:00.9]} 1... c5 {[%clk 0:02:59.3]} 2. Nf3 {[%clk 0:02:59.8]}
2... e6 {[%clk 0:02:58.7]} 3. c4 {[%clk 0:02:56.9]} 3... Nc6 {[%clk 0:02:57.8]}
4. Nc3 {[%clk 0:02:56.9]} 4... Nf6 {[%clk 0:02:47]} 5. Be2 {[%clk 0:02:56.8]}
5... d6 {[%clk 0:02:37.1]} 6. d4 {[%clk 0:02:55.4]} 6... cxd4 {[%clk 0:02:36.6]}
7. Nxd4 {[%clk 0:02:56.3]} 7... Be7 {[%clk 0:02:35.5]} 8. O-O {[%clk 0:02:56.2]}
8... O-O {[%clk 0:02:34.1]} 9. Be3 {[%clk 0:02:56.5]} 9... a6 {[%clk 0:02:30.7]}
10. Qd2 {[%clk 0:02:44.9]} 10... Bd7 {[%clk 0:02:26.3]} 11. a4 {[%clk
0:02:40.9]} 11... Rc8 {[%clk 0:02:25]} 12. Rac1 {[%clk 0:02:36.1]} 12... Ne5
{[%clk 0:02:19.3]} 13. b3 {[%clk 0:02:30]} 13... Neg4 {[%clk 0:02:08.6]} 14. Bg5
{[%clk 0:02:29.1]} 14... h6 {[%clk 0:02:01.6]} 15. Bh4 {[%clk 0:02:28.3]} 15...
Ne5 {[%clk 0:01:44.1]} 16. Bg3 {[%clk 0:02:22.2]} 16... Qb6 {[%clk 0:01:35.4]}
17. f4 {[%clk 0:01:55]} 17... Nc6 {[%clk 0:01:21.1]} 18. Bf2 {[%clk 0:01:54.7]}
18... Qa5 {[%clk 0:00:54.2]} 19. Rfd1 {[%clk 0:01:46.2]} 19... Nxd4 {[%clk
0:00:41.7]} 20. Bxd4 {[%clk 0:01:21.4]} 20... e5 {[%clk 0:00:40.6]} 21. Be3
{[%clk 0:01:10.7]} 21... Bc6 {[%clk 0:00:32.4]} 22. Bf3 {[%clk 0:00:55.6]} 22...
Qd8 {[%clk 0:00:17.7]} 23. f5 {[%clk 0:00:54.8]} 23... Kh7 {[%clk 0:00:14.2]}
24. g3 {[%clk 0:00:29.1]} 24... b6 {[%clk 0:00:13.7]} 25. Qf2 {[%clk 0:00:26.4]}
25... Rb8 {[%clk 0:00:13.2]} 26. h4 {[%clk 0:00:23.1]} 26... Qc7 {[%clk
0:00:13.2]} 27. g4 {[%clk 0:00:20.6]} 27... Qb7 {[%clk 0:00:12.2]} 28. Qg2
{[%clk 0:00:19.7]} 28... Nd7 {[%clk 0:00:11.3]} 29. g5 {[%clk 0:00:19.8]} 29...
Rg8 {[%clk 0:00:10.9]} 30. Kh2 {[%clk 0:00:17.8]} 30... h5 {[%clk 0:00:08.2]}
31. Bxh5 {[%clk 0:00:17.1]} 31... Nc5 {[%clk 0:00:08.4]} 32. Bf3 {[%clk
0:00:16.9]} 32... g6 {[%clk 0:00:08.5]} 33. h5 {[%clk 0:00:13.9]} 33... gxh5
{[%clk 0:00:07.3]} 34. Qh3 {[%clk 0:00:12.7]} 34... Kg7 {[%clk 0:00:06.2]} 35.
f6+ {[%clk 0:00:12.7]} 35... Bxf6 {[%clk 0:00:06.3]} 36. gxf6+ {[%clk
0:00:12.7]} 36... Kxf6 {[%clk 0:00:06.7]} 37. Rf1 {[%clk 0:00:12.7]} 37... Ke7
{[%clk 0:00:06.4]} 38. Nd5+ {[%clk 0:00:12.9]} 38... Bxd5 {[%clk 0:00:06.3]} 39.
exd5 {[%clk 0:00:13.1]} 39... Nd3 {[%clk 0:00:06.2]} 40. Rc2 {[%clk 0:00:11.9]}
40... f6 {[%clk 0:00:05]} 41. Be4 {[%clk 0:00:11.9]} 41... Qd7 {[%clk
0:00:04.6]} 42. Qxd7+ {[%clk 0:00:11.1]} 42... Kxd7 {[%clk 0:00:05]} 43. Bxd3
{[%clk 0:00:12]} 43... h4 {[%clk 0:00:03]} 44. Bf5+ {[%clk 0:00:12.4]} 44... Ke7
{[%clk 0:00:02.8]} 45. Rg2 {[%clk 0:00:13]} 45... Rxg2+ {[%clk 0:00:01.8]} 46.
Kxg2 {[%clk 0:00:13.9]} 46... Rg8+ {[%clk 0:00:02.1]} 47. Kh2 {[%clk 0:00:13.4]}
47... b5 {[%clk 0:00:03]} 48. axb5 {[%clk 0:00:13.2]} 48... axb5 {[%clk
0:00:02.4]} 49. Rg1 {[%clk 0:00:13.6]} 49... Rxg1 {[%clk 0:00:01.3]} 50. Kxg1
{[%clk 0:00:13.3]} 50... bxc4 {[%clk 0:00:02.2]} 51. bxc4 {[%clk 0:00:13.7]} 1-0

[Event "*** SCC Grand Prix: Titled Tuesday Blitz"]
[Site "Chess.com"]
[Date "2020.10.13"]
[Round "5"]
[White "alexgo05"]
[Black "swayamsm"]
[Result "0-1"]
[WhiteElo "2443"]
[BlackElo "2633"]
[TimeControl "180+1"]
[EndTime "10:56:47 PDT"]
[Termination "swayamsm won by checkmate"]

1. e4 {[%clk 0:03:00.9]} 1... e6 {[%clk 0:02:48.1]} 2. d4 {[%clk 0:02:55.1]}
2... d5 {[%clk 0:02:48.3]} 3. Nc3 {[%clk 0:02:54.8]} 3... Nf6 {[%clk 0:02:48.1]}
4. e5 {[%clk 0:02:55.2]} 4... Nfd7 {[%clk 0:02:46.8]} 5. f4 {[%clk 0:02:55.7]}
5... c5 {[%clk 0:02:46.7]} 6. Nf3 {[%clk 0:02:56.1]} 6... Nc6 {[%clk 0:02:46.8]}
7. Be3 {[%clk 0:02:56.7]} 7... Be7 {[%clk 0:02:46.3]} 8. Qd2 {[%clk 0:02:56]}
8... O-O {[%clk 0:02:46.3]} 9. h4 {[%clk 0:02:56.2]} 9... b6 {[%clk 0:02:41.5]}
10. Bb5 {[%clk 0:02:40.2]} 10... Bb7 {[%clk 0:02:37.3]} 11. h5 {[%clk 0:02:36]}
11... cxd4 {[%clk 0:02:21.2]} 12. Nxd4 {[%clk 0:02:34]} 12... Nxd4 {[%clk
0:02:18.6]} 13. Bxd4 {[%clk 0:02:33.5]} 13... Nc5 {[%clk 0:02:15.7]} 14. O-O-O
{[%clk 0:02:31.4]} 14... a6 {[%clk 0:02:13]} 15. Bd3 {[%clk 0:02:18]} 15... b5
{[%clk 0:02:02.9]} 16. g4 {[%clk 0:02:16.7]} 16... b4 {[%clk 0:02:02.7]} 17. Ne2
{[%clk 0:02:16.7]} 17... Qa5 {[%clk 0:01:59.8]} 18. Kb1 {[%clk 0:02:16.8]} 18...
Ne4 {[%clk 0:01:59.3]} 19. Bxe4 {[%clk 0:02:12.9]} 19... dxe4 {[%clk 0:02:00.2]}
20. f5 {[%clk 0:02:07]} 20... Bd5 {[%clk 0:01:59.3]} 21. Nc1 {[%clk 0:02:07.3]}
21... Rfc8 {[%clk 0:01:46.4]} 22. f6 {[%clk 0:01:58]} 22... Bf8 {[%clk
0:01:43.6]} 23. fxg7 {[%clk 0:01:55.7]} 23... Be7 {[%clk 0:01:31.3]} 24. g5
{[%clk 0:01:42.5]} 24... e3 {[%clk 0:01:03.5]} 25. Qxe3 {[%clk 0:01:42.5]} 25...
Bxh1 {[%clk 0:01:03]} 26. Rxh1 {[%clk 0:01:43.4]} 26... Qd5 {[%clk 0:01:02.9]}
27. Rf1 {[%clk 0:01:20.1]} 27... Qg2 {[%clk 0:01:00.3]} 28. Rg1 {[%clk
0:01:16.3]} 28... Qxc2+ {[%clk 0:01:00]} 29. Ka1 {[%clk 0:01:15.5]} 29... Rc4
{[%clk 0:00:45.6]} 30. g6 {[%clk 0:01:12.6]} 30... fxg6 {[%clk 0:00:44.9]} 31.
hxg6 {[%clk 0:01:12.6]} 31... Rd8 {[%clk 0:00:38.9]} 32. gxh7+ {[%clk
0:01:07.1]} 32... Qxh7 {[%clk 0:00:39.8]} 33. Nb3 {[%clk 0:00:58.6]} 33... a5
{[%clk 0:00:36.9]} 34. Qe1 {[%clk 0:00:37.7]} 34... Rc2 {[%clk 0:00:28.4]} 35.
Bf2 {[%clk 0:00:29]} 35... Qd3 {[%clk 0:00:08]} 36. Rh1 {[%clk 0:00:21.7]} 36...
Bg5 {[%clk 0:00:08.2]} 37. Bb6 {[%clk 0:00:17.9]} 37... Re2 {[%clk 0:00:06.2]}
38. Qg1 {[%clk 0:00:14.7]} 38... Qc2 {[%clk 0:00:04.9]} 39. Rh8+ {[%clk
0:00:10.2]} 39... Kf7 {[%clk 0:00:05.2]} 40. Qf1+ {[%clk 0:00:09.8]} 40... Kxg7
{[%clk 0:00:04.3]} 41. Rh7+ {[%clk 0:00:06.2]} 41... Kxh7 {[%clk 0:00:04.1]} 42.
Qf7+ {[%clk 0:00:06.8]} 42... Kh6 {[%clk 0:00:04.2]} 43. Qxe6+ {[%clk
0:00:04.7]} 43... Kh5 {[%clk 0:00:04.7]} 44. Qh3+ {[%clk 0:00:04.7]} 44... Kg6
{[%clk 0:00:05.2]} 45. Qe6+ {[%clk 0:00:05.3]} 45... Kg7 {[%clk 0:00:05.8]} 46.
Bd4 {[%clk 0:00:02.5]} 46... Re1+ {[%clk 0:00:04.9]} 47. Nc1 {[%clk 0:00:02.6]}
47... Rxc1# {[%clk 0:00:05.8]} 0-1

[Event "*** SCC Grand Prix: Titled Tuesday Blitz"]
[Site "Chess.com"]
[Date "2020.10.13"]
[Round "5"]
[White "FMalexhdez"]
[Black "witcher8"]
[Result "1-0"]
[WhiteElo "2264"]
[BlackElo "2419"]
[TimeControl "180+1"]
[EndTime "10:56:48 PDT"]
[Termination "FMalexhdez won on time"]

1. e4 {[%clk 0:03:00.4]} 1... c6 {[%clk 0:01:54.4]} 2. d4 {[%clk 0:02:58.4]}
2... d5 {[%clk 0:01:54.1]} 3. exd5 {[%clk 0:02:59]} 3... cxd5 {[%clk 0:01:54.4]}
4. Bd3 {[%clk 0:02:59.6]} 4... Nf6 {[%clk 0:01:53.5]} 5. c3 {[%clk 0:02:59.9]}
5... Nc6 {[%clk 0:01:52.2]} 6. Bg5 {[%clk 0:02:59.7]} 6... Bg4 {[%clk 0:01:49]}
7. Qb3 {[%clk 0:02:58.9]} 7... Qd7 {[%clk 0:01:48.1]} 8. Nd2 {[%clk 0:02:59.2]}
8... e6 {[%clk 0:01:48.1]} 9. Ngf3 {[%clk 0:02:59.1]} 9... Bxf3 {[%clk
0:01:47.5]} 10. Nxf3 {[%clk 0:02:58.5]} 10... Be7 {[%clk 0:01:48.2]} 11. O-O
{[%clk 0:02:58]} 11... O-O {[%clk 0:01:47.8]} 12. Rfe1 {[%clk 0:02:58.1]} 12...
a6 {[%clk 0:01:46.6]} 13. Ne5 {[%clk 0:02:56.2]} 13... Qc7 {[%clk 0:01:46.1]}
14. f4 {[%clk 0:02:40.7]} 14... g6 {[%clk 0:01:33.7]} 15. Re3 {[%clk 0:02:35.5]}
15... Ne8 {[%clk 0:01:18.3]} 16. Bxe7 {[%clk 0:02:30.8]} 16... Qxe7 {[%clk
0:01:17.2]} 17. Qc2 {[%clk 0:02:16.4]} 17... Rc8 {[%clk 0:01:15.6]} 18. Qf2
{[%clk 0:02:15.8]} 18... Ng7 {[%clk 0:01:12.9]} 19. Rf1 {[%clk 0:01:56.2]} 19...
b5 {[%clk 0:01:03.1]} 20. a3 {[%clk 0:01:54.6]} 20... Rfe8 {[%clk 0:00:54.4]}
21. Rh3 {[%clk 0:01:53.8]} 21... h5 {[%clk 0:00:47.8]} 22. Nxg6 {[%clk
0:01:34.6]} 22... fxg6 {[%clk 0:00:47.3]} 23. Bxg6 {[%clk 0:01:34.8]} 23... Rf8
{[%clk 0:00:47.6]} 24. Bxh5 {[%clk 0:01:35.1]} 24... Nxh5 {[%clk 0:00:44.1]} 25.
Rxh5 {[%clk 0:01:34.2]} 25... Rf7 {[%clk 0:00:44.7]} 26. f5 {[%clk 0:01:19.8]}
26... Rcf8 {[%clk 0:00:43.3]} 27. g4 {[%clk 0:00:53.4]} 27... exf5 {[%clk
0:00:35.5]} 28. Rxf5 {[%clk 0:00:47.1]} 28... Rxf5 {[%clk 0:00:27.7]} 29. gxf5
{[%clk 0:00:47]} 29... Qf6 {[%clk 0:00:18.1]} 30. Kh1 {[%clk 0:00:38.6]} 30...
Kf7 {[%clk 0:00:17.9]} 31. Qf4 {[%clk 0:00:33.3]} 31... Rg8 {[%clk 0:00:15.8]}
32. Re1 {[%clk 0:00:27.3]} 32... Ne7 {[%clk 0:00:14.4]} 33. Re5 {[%clk
0:00:23.1]} 33... Qg5 {[%clk 0:00:13.3]} 34. Qxg5 {[%clk 0:00:14.8]} 34... Rxg5
{[%clk 0:00:14.2]} 35. h4 {[%clk 0:00:13.2]} 35... Rxf5 {[%clk 0:00:13.5]} 36.
Re2 {[%clk 0:00:12.7]} 36... Rf3 {[%clk 0:00:12.2]} 37. Kg2 {[%clk 0:00:12.6]}
37... Rf6 {[%clk 0:00:07.6]} 38. Kg3 {[%clk 0:00:12.7]} 38... Rg6+ {[%clk
0:00:06.6]} 39. Kf4 {[%clk 0:00:12.5]} 39... Rh6 {[%clk 0:00:07]} 40. Kg5 {[%clk
0:00:11.5]} 40... Rg6+ {[%clk 0:00:06.5]} 41. Kf4 {[%clk 0:00:11.4]} 41... Rg1
{[%clk 0:00:06.2]} 42. Ke5 {[%clk 0:00:10]} 42... Rh1 {[%clk 0:00:05.3]} 43. Kd6
{[%clk 0:00:09]} 43... Rxh4 {[%clk 0:00:02.4]} 44. Rxe7+ {[%clk 0:00:08.2]}
44... Kf8 {[%clk 0:00:01.5]} 45. Re5 {[%clk 0:00:07.6]} 45... Rh2 {[%clk
0:00:01.3]} 46. b4 {[%clk 0:00:04.1]} 46... Rb2 {[%clk 0:00:02.2]} 47. Rxd5
{[%clk 0:00:04.1]} 47... Rb3 {[%clk 0:00:02.1]} 48. Kc5 {[%clk 0:00:05]} 48...
Rxc3+ {[%clk 0:00:02]} 49. Kb6 {[%clk 0:00:05.7]} 49... Rxa3 {[%clk 0:00:02.9]}
50. Rd8+ {[%clk 0:00:05.9]} 50... Ke7 {[%clk 0:00:03.1]} 51. Ra8 {[%clk
0:00:06.6]} 51... Kd6 {[%clk 0:00:02.7]} 52. Rxa6 {[%clk 0:00:06.6]} 52... Rd3
{[%clk 0:00:02.2]} 53. Kxb5+ {[%clk 0:00:06.9]} 53... Kd5 {[%clk 0:00:02.6]} 54.
Ra8 {[%clk 0:00:06.6]} 1-0

[Event "*** SCC Grand Prix: Titled Tuesday Blitz"]
[Site "Chess.com"]
[Date "2020.10.13"]
[Round "5"]
[White "Shivagami"]
[Black "korkmaz16"]
[Result "1-0"]
[WhiteElo "2247"]
[BlackElo "2373"]
[TimeControl "180+1"]
[EndTime "10:56:48 PDT"]
[Termination "Shivagami won by resignation"]

1. e4 {[%clk 0:02:59.2]} 1... e6 {[%clk 0:02:55]} 2. Nc3 {[%clk 0:02:58.8]} 2...
d5 {[%clk 0:02:52.3]} 3. g3 {[%clk 0:02:59]} 3... Nf6 {[%clk 0:02:50.8]} 4. Bg2
{[%clk 0:02:54.8]} 4... d4 {[%clk 0:02:42.9]} 5. Nce2 {[%clk 0:02:54]} 5... e5
{[%clk 0:02:33.7]} 6. d3 {[%clk 0:02:49.9]} 6... c5 {[%clk 0:02:10.4]} 7. f4
{[%clk 0:02:49.1]} 7... Ng4 {[%clk 0:01:59.2]} 8. Nf3 {[%clk 0:02:46.8]} 8...
Nc6 {[%clk 0:01:55.1]} 9. h3 {[%clk 0:02:45.3]} 9... Ne3 {[%clk 0:01:54.8]} 10.
Bxe3 {[%clk 0:02:44.5]} 10... dxe3 {[%clk 0:01:55]} 11. Qc1 {[%clk 0:02:44.6]}
11... exf4 {[%clk 0:01:54.3]} 12. Nxf4 {[%clk 0:02:36.7]} 12... Nd4 {[%clk
0:01:53.8]} 13. Nd5 {[%clk 0:02:34.4]} 13... Be6 {[%clk 0:01:51.6]} 14. Nxe3
{[%clk 0:02:34.4]} 14... Bd6 {[%clk 0:01:48.1]} 15. Nf1 {[%clk 0:02:22.8]} 15...
Qc7 {[%clk 0:01:26.9]} 16. Kf2 {[%clk 0:02:12.2]} 16... O-O {[%clk 0:01:23.2]}
17. c3 {[%clk 0:02:08.3]} 17... Nxf3 {[%clk 0:01:22.8]} 18. Bxf3 {[%clk
0:02:08.4]} 18... f5 {[%clk 0:01:21.5]} 19. Kg2 {[%clk 0:01:57.9]} 19... fxe4
{[%clk 0:01:18.9]} 20. Bxe4 {[%clk 0:01:57.9]} 20... c4 {[%clk 0:01:10.4]} 21.
Qe3 {[%clk 0:01:42.2]} 21... Rae8 {[%clk 0:01:07.8]} 22. Re1 {[%clk 0:01:32.5]}
22... cxd3 {[%clk 0:01:04.4]} 23. Qxd3 {[%clk 0:01:29.9]} 23... Bc4 {[%clk
0:00:39.8]} 24. Bd5+ {[%clk 0:01:19.7]} 24... Bxd5+ {[%clk 0:00:38.4]} 25. Qxd5+
{[%clk 0:01:19.6]} 25... Kh8 {[%clk 0:00:36.1]} 26. Ne3 {[%clk 0:00:53.5]} 26...
Bxg3 {[%clk 0:00:34.3]} 27. Re2 {[%clk 0:00:51.8]} 27... Bf4 {[%clk 0:00:31.9]}
28. Rhe1 {[%clk 0:00:46.9]} 28... Bxe3 {[%clk 0:00:28]} 29. Rxe3 {[%clk
0:00:46.9]} 29... Rxe3 {[%clk 0:00:28.6]} 30. Rxe3 {[%clk 0:00:47.1]} 30... Qf4
{[%clk 0:00:28.6]} 31. Rf3 {[%clk 0:00:39.8]} 31... Qxf3+ {[%clk 0:00:27.4]} 32.
Qxf3 {[%clk 0:00:39.8]} 32... Rxf3 {[%clk 0:00:28.3]} 33. Kxf3 {[%clk
0:00:40.3]} 33... Kg8 {[%clk 0:00:29.1]} 34. Ke4 {[%clk 0:00:40.2]} 34... Kf7
{[%clk 0:00:29.3]} 35. Kd5 {[%clk 0:00:39.2]} 35... Ke7 {[%clk 0:00:28.3]} 36.
c4 {[%clk 0:00:39.2]} 36... g5 {[%clk 0:00:22]} 37. Ke5 {[%clk 0:00:36.2]} 37...
h5 {[%clk 0:00:22.2]} 38. Kf5 {[%clk 0:00:35.7]} 38... g4 {[%clk 0:00:20.6]} 39.
hxg4 {[%clk 0:00:35.6]} 39... hxg4 {[%clk 0:00:21.5]} 40. Kxg4 {[%clk 0:00:36]}
40... Kd6 {[%clk 0:00:22.4]} 41. b4 {[%clk 0:00:28.2]} 41... Ke5 {[%clk
0:00:22.3]} 42. Kf3 {[%clk 0:00:17.4]} 42... Kd4 {[%clk 0:00:22.5]} 43. c5
{[%clk 0:00:18]} 43... Kc4 {[%clk 0:00:22.9]} 44. a3 {[%clk 0:00:18.1]} 44...
Kb3 {[%clk 0:00:23.4]} 45. b5 {[%clk 0:00:18.5]} 45... Kxa3 {[%clk 0:00:18.4]}
46. c6 {[%clk 0:00:18.8]} 46... bxc6 {[%clk 0:00:18]} 47. bxc6 {[%clk
0:00:19.3]} 47... a5 {[%clk 0:00:18.9]} 48. c7 {[%clk 0:00:19.9]} 48... a4
{[%clk 0:00:19.8]} 49. c8=Q {[%clk 0:00:20.2]} 49... Ka2 {[%clk 0:00:20.7]} 50.
Qc2+ {[%clk 0:00:19.6]} 50... Ka3 {[%clk 0:00:19.7]} 51. Ke3 {[%clk 0:00:18.8]}
51... Kb4 {[%clk 0:00:20.6]} 52. Qa2 {[%clk 0:00:18.8]} 52... a3 {[%clk
0:00:21.5]} 53. Kd3 {[%clk 0:00:19]} 53... Ka4 {[%clk 0:00:22.4]} 54. Kc3 {[%clk
0:00:19.5]} 54... Kb5 {[%clk 0:00:22.7]} 55. Qxa3 {[%clk 0:00:19.9]} 55... Kc6
{[%clk 0:00:23.2]} 56. Qa5 {[%clk 0:00:19.6]} 56... Kd6 {[%clk 0:00:22.8]} 57.
Kd4 {[%clk 0:00:19.9]} 57... Ke6 {[%clk 0:00:23.7]} 58. Qd5+ {[%clk 0:00:19.9]}
58... Kf6 {[%clk 0:00:24.6]} 59. Ke4 {[%clk 0:00:20.4]} 59... Kg6 {[%clk
0:00:25.5]} 60. Qf5+ {[%clk 0:00:20.1]} 60... Kg7 {[%clk 0:00:25.5]} 61. Qe6
{[%clk 0:00:19.4]} 61... Kh8 {[%clk 0:00:26.4]} 62. Qe7 {[%clk 0:00:18.7]} 62...
Kg8 {[%clk 0:00:26.5]} 63. Kf5 {[%clk 0:00:19.4]} 63... Kh8 {[%clk 0:00:27.4]}
64. Kg6 {[%clk 0:00:19.8]} 1-0

[Event "*** SCC Grand Prix: Titled Tuesday Blitz"]
[Site "Chess.com"]
[Date "2020.10.13"]
[Round "5"]
[White "azikom"]
[Black "KuzubovYuriy"]
[Result "0-1"]
[WhiteElo "2636"]
[BlackElo "2886"]
[TimeControl "180+1"]
[EndTime "10:56:51 PDT"]
[Termination "KuzubovYuriy won by resignation"]

1. d4 {[%clk 0:03:00]} 1... Nf6 {[%clk 0:02:59.2]} 2. Nf3 {[%clk 0:02:59.7]}
2... e6 {[%clk 0:02:58.9]} 3. Bg5 {[%clk 0:02:58.7]} 3... h6 {[%clk 0:02:58.4]}
4. Bh4 {[%clk 0:02:58.6]} 4... c5 {[%clk 0:02:58.7]} 5. e3 {[%clk 0:02:58.4]}
5... d5 {[%clk 0:02:59.2]} 6. c3 {[%clk 0:02:57.1]} 6... Nc6 {[%clk 0:02:59]} 7.
Nbd2 {[%clk 0:02:57.2]} 7... Qb6 {[%clk 0:02:47.6]} 8. Qb3 {[%clk 0:02:55.5]}
8... c4 {[%clk 0:02:42.5]} 9. Qxb6 {[%clk 0:02:51.4]} 9... axb6 {[%clk
0:02:42.2]} 10. a3 {[%clk 0:02:48.2]} 10... b5 {[%clk 0:02:41.6]} 11. Rc1 {[%clk
0:02:45.8]} 11... g5 {[%clk 0:02:35.8]} 12. Bg3 {[%clk 0:02:45.1]} 12... Nh5
{[%clk 0:02:35.9]} 13. Be2 {[%clk 0:02:42.1]} 13... Nxg3 {[%clk 0:02:34.5]} 14.
hxg3 {[%clk 0:02:41.8]} 14... Bg7 {[%clk 0:02:34.5]} 15. Nh2 {[%clk 0:02:40.1]}
15... f5 {[%clk 0:02:31.8]} 16. f4 {[%clk 0:02:39.5]} 16... g4 {[%clk
0:02:26.4]} 17. Nhf1 {[%clk 0:02:35]} 17... h5 {[%clk 0:02:25.2]} 18. Kf2 {[%clk
0:02:33.6]} 18... Kf7 {[%clk 0:02:23]} 19. Nb1 {[%clk 0:02:27.3]} 19... Kg6
{[%clk 0:02:19.9]} 20. Nfd2 {[%clk 0:02:26.7]} 20... Bd7 {[%clk 0:02:19.8]} 21.
Rh2 {[%clk 0:02:25.4]} 21... Ne7 {[%clk 0:02:09.7]} 22. Rhh1 {[%clk 0:02:24.8]}
22... Nc8 {[%clk 0:02:08.2]} 23. Bd1 {[%clk 0:02:21.2]} 23... Bf6 {[%clk
0:02:05.2]} 24. Bc2 {[%clk 0:02:20.5]} 24... Nb6 {[%clk 0:02:04.4]} 25. Rcf1
{[%clk 0:02:19.3]} 25... Rh7 {[%clk 0:02:02.7]} 26. Rfg1 {[%clk 0:02:11.4]}
26... Rah8 {[%clk 0:02:00.4]} 27. Nf1 {[%clk 0:02:09.8]} 27... b4 {[%clk
0:01:42.3]} 28. axb4 {[%clk 0:01:47.3]} 28... Ba4 {[%clk 0:01:40.4]} 29. Na3
{[%clk 0:01:47]} 29... Bxc2 {[%clk 0:01:31.4]} 30. Nxc2 {[%clk 0:01:45.9]} 30...
Na4 {[%clk 0:01:32]} 31. Nd2 {[%clk 0:01:45.5]} 31... Nxb2 {[%clk 0:01:30.9]}
32. Ra1 {[%clk 0:01:45.6]} 32... h4 {[%clk 0:01:31]} 33. gxh4 {[%clk 0:01:39.8]}
33... Bxh4+ {[%clk 0:01:26.9]} 34. Ke2 {[%clk 0:01:38.3]} 34... Bf6 {[%clk
0:01:20.7]} 35. Rxh7 {[%clk 0:01:37.3]} 35... Rxh7 {[%clk 0:01:21.3]} 36. Nf1
{[%clk 0:01:32.5]} 36... b5 {[%clk 0:01:15.1]} 37. Kd2 {[%clk 0:01:05.4]} 37...
Rh1 {[%clk 0:00:54.5]} 38. Ng3 {[%clk 0:01:02.9]} 38... Rh2 {[%clk 0:00:40.3]}
39. Rg1 {[%clk 0:01:02.4]} 39... Nd3 {[%clk 0:00:25]} 40. Nf1 {[%clk 0:00:59.3]}
40... Rh8 {[%clk 0:00:22.9]} 41. g3 {[%clk 0:00:40.3]} 41... Ra8 {[%clk
0:00:21.5]} 42. Nh2 {[%clk 0:00:37.7]} 42... Rh8 {[%clk 0:00:19.6]} 43. Nf1
{[%clk 0:00:35.8]} 43... Be7 {[%clk 0:00:18.9]} 44. Ke2 {[%clk 0:00:33.4]} 44...
Ra8 {[%clk 0:00:18.5]} 45. Nh2 {[%clk 0:00:32.1]} 45... Ra2 {[%clk 0:00:18]} 46.
Kd2 {[%clk 0:00:32.2]} 46... Nxb4 {[%clk 0:00:17.4]} 47. cxb4 {[%clk 0:00:30.9]}
47... Bxb4+ {[%clk 0:00:18.3]} 48. Kd1 {[%clk 0:00:30.1]} 48... Bc3 {[%clk
0:00:18.4]} 49. Nf1 {[%clk 0:00:20.2]} 49... b4 {[%clk 0:00:18.7]} 50. Nxb4
{[%clk 0:00:16.4]} 50... Bxb4 {[%clk 0:00:18.6]} 51. Rh1 {[%clk 0:00:17.1]}
51... Ra1+ {[%clk 0:00:18.4]} 52. Ke2 {[%clk 0:00:16.6]} 52... c3 {[%clk
0:00:18.1]} 53. Nd2 {[%clk 0:00:15]} 53... Rxh1 {[%clk 0:00:17.4]} 0-1